Cogmind - Beta 13 @@@ ROGUE MODE // 2024.04.04 @ 16:09:44 Player: xeen Result: Destroyed by as-43860 with Assembled Heavy Rifle Performance ------------- Evolutions (1) 500 Regions Visited (4) 800 Robots Destroyed (21) 105 Value Destroyed (528) 528 Prototype IDs (0) 0 Alien Tech Used (0) 0 Bonus (0) 0 TOTAL SCORE: 1933 Bonus ------- None Cogmind --------- Core Integrity 0/400 Matter 155/300 Energy 99/100 System Corruption 1% Temperature Cool (0) Movement Core (50) Location -9/Mines Parts ------- > --- POWER (1) -------- (None) > --- PROPULSION (3) --- (None) > --- UTILITY (3) ------ Visual Processing Unit > --- WEAPON (2) ------- (None) > --- INVENTORY (5) ---- Sensor Array Light Assault Rifle Mining Laser Peak State ------------ > --- POWER ------------ Improved Ion Engine > --- PROPULSION ------- Wheel Wheel Wheel > --- UTILITY ---------- Visual Processing Unit Sensor Array Medium Armor Plating > --- WEAPON ----------- Light Assault Rifle Rocket Launcher > --- INVENTORY -------- Mining Laser [Rating: 13] Favorites ----------- Power Improved Ion Engine Engine Improved Ion Engine Propulsion Wheel Leg Aluminum Leg Wheel Wheel Utility Visual Processing Unit Device Sensor Array Processor Visual Processing Unit Protection Medium Armor Plating Weapon Light Assault Rifle Energy Gun EM Pulse Gun Ballistic Gun Light Assault Rifle Launcher Mini Grenade Launcher Build | -11 -10 -10 -9 -9 ------- Run | Yrd Mat Min Mat Min Slots Evolved 2 | . . . 2 . Power . | . . . . . Propulsion 1 | . . . 1 . Utility 1 | . . . 1 . Weapon . | . . . . . Parts Attached 26 | 5 5 1 11 4 Power 1 | . . . 1 . Engine 1 | . . . 1 . Core . | . . . . . Reactor . | . . . . . Propulsion 6 | 3 . . 2 1 Treads . | . . . . . Leg 1 | 1 . . . . Wheel 5 | 2 . . 2 1 Hover . | . . . . . Flight . | . . . . . Utility 6 | . 2 . 2 2 Device 2 | . 1 . 1 . Storage . | . . . . . Processor 1 | . 1 . . . Hackware . | . . . . . Protection 3 | . . . 1 2 Artifact . | . . . . . Weapon 13 | 2 3 1 6 1 Energy Gun 3 | 1 1 . 1 . Energy Cannon . | . . . . . Ballistic Gun 4 | 1 1 . 1 1 Ballistic Cannon . | . . . . . Launcher 6 | . 1 1 4 . Special Weapon . | . . . . . Impact Weapon . | . . . . . Slashing Weapon . | . . . . . Piercing Weapon . | . . . . . Special Melee Weapon . | . . . . . Unidentified Prototypes . | . . . . . Parts Lost 13 | . . . 9 4 Power 1 | . . . 1 . Propulsion 3 | . . . 3 . Utility 4 | . . . 2 2 Weapon 5 | . . . 3 2 Highest Loss Streak 7 | . . . 3 7 To Critical Strikes . | . . . . . Average Slot Usage (%) 72 | . 66 71 77 38 Engine 6 | . . . 10 . Wheel 19 | . 24 14 19 8 Device 13 | . 6 14 16 . Processor 10 | . 6 14 11 11 Protection 1 | . . . 1 8 Energy Gun 2 | . 11 . . . Ballistic Gun 9 | . 14 14 7 2 Launcher 9 | . 2 14 11 8 Naked Turns . | . . . . . Heaviest Build 18 | 4 5 6 16 18 Greatest Support 30 | 20 20 10 30 12 Greatest Overweight (x) 3 | . . . 3 1 Average Overweight (x) . | . . . . . Largest Inventory Capacity 5 | 5 5 5 5 5 Average Capacity 5 | 5 5 5 5 5 Most Carried 5 | 5 5 5 5 5 Average Carried 2 | 2 2 4 2 3 Final Capacity 5 | 5 5 5 5 5 Final Carried 5 | 3 3 5 5 3 Class Distribution -------------------- 100% | Mutant Dominant Class ---------------- Mutant | -10/Materials Mutant | -10/Mines Mutant | -9/Materials Mutant | -9/Mines Resources | -11 -10 -10 -9 -9 ----------- Run | Yrd Mat Min Mat Min Matter Collected 483 | 250 73 32 101 27 Remotely . | . . . . . Salvage Created 524 | . 131 73 314 6 Parts 43 | . 9 1 29 4 Haulers Intercepted . | . . . . . Recyclers Shooed . | . . . . . Parts Field Recycled . | . . . . . Retrieved Matter . | . . . . . Parts Self-Destructed . | . . . . . Prevented . | . . . . . Kills | -11 -10 -10 -9 -9 ------- Run | Yrd Mat Min Mat Min Combat Hostiles Destroyed 17 | . 2 2 11 2 Guns 6 | . 2 . 4 . AOE 11 | . . 2 7 2 Classes Destroyed 7 | . 2 . 3 2 Builder 4 | . . . 4 . Tunneler 1 | . . . . 1 Watcher 1 | . 1 . . . Swarmer 4 | . . . 4 . Grunt 9 | . 2 2 5 . Sentry 2 | . . . 2 . Assembled 2 | . . . . 2 Best Kill Streak 6 | . 2 2 6 3 Combat Bots Only 4 | . 2 2 4 2 Max Kills in Single Turn 6 | . 1 2 6 2 Gunslinging . | . . . . . Exploded 4 | . . 2 4 1 Melee . | . . . . . Uniques/NPCs Destroyed . | . . . . . Combat | -11 -10 -10 -9 -9 -------- Run | Yrd Mat Min Mat Min Hostile Shots Fired 130 | . 15 1 56 58 Missed 28 | . 1 1 12 14 Damage Taken 1556 | . 194 . 587 775 Core 493 | . 93 . 80 320 Absorbed by Shields 113 | . . . 113 . Core Remaining (%) 81 | 100 . 62 . . Volleys Fired 45 | . 11 1 30 3 Largest 2 | . 2 2 2 2 Hottest 60 | . 60 53 60 53 Shots Fired 68 | . 22 2 39 5 Gun 52 | . 22 1 26 3 Cannon . | . . . . . Launcher 16 | . . 1 13 2 Special . | . . . . . Kinetic 39 | . 11 1 24 3 Thermal 2 | . . . 2 . Explosive 16 | . . 1 13 2 Electromagnetic 11 | . 11 . . . Robot Hit Streak 12 | . 11 5 12 2 Robot Miss Streak 3 | . 1 . 3 2 Penetration Max . | . . . . . Secondary Targets . | . . . . . Shots Hit Robots 49 | . 14 2 31 2 Core Hits 42 | . 6 3 28 5 Critical Kills . | . . . . . Critical Parts Destroyed . | . . . . . Critical Strikes . | . . . . . Melee Attacks . | . . . . . Impact . | . . . . . Slashing . | . . . . . Piercing . | . . . . . Sneak Attacks . | . . . . . Combat Hostiles . | . . . . . Follow-up Attacks . | . . . . . Damage Inflicted 1464 | . 185 190 859 230 Guns 377 | . 185 7 174 11 Cannons . | . . . . . Explosions 1087 | . . 183 685 219 Melee . | . . . . . Ramming . | . . . . . Kinetic 259 | . 87 7 154 11 Thermal 124 | . . 104 20 . Explosive 983 | . . 79 685 219 Electromagnetic 98 | . 98 . . . Impact . | . . . . . Slashing . | . . . . . Piercing . | . . . . . Highest Corruption 1 | . . . . 1 Average Corruption 1 | . . . . 1 Corruption Purged . | . . . . . Corruption Blocked . | . . . . . Overload Shots . | . . . . . Overflow Damage 35 | . . . 9 26 Projectiles . | . . . . . Explosions 35 | . . . 9 26 Melee . | . . . . . Knockbacks . | . . . . . Impact . | . . . . . Kinetic . | . . . . . Secondary . | . . . . . Self-Inflicted Damage 213 | . . . 166 47 Shots 9 | . . . 8 1 Rammed . | . . . . . Targets Rammed . | . . . . . Kicked . | . . . . . Crushed . | . . . . . Highest Temperature 65 | . 22 2 43 65 Average Temperature 13 | . 8 1 9 37 Received Heat Transfer 564 | . 126 . 218 220 Siege Activations . | . . . . . Robots Corrupted . | . . . . . Combat Hostiles . | . . . . . Parts Fried . | . . . . . Impact Corruptions . | . . . . . Robots Melted . | . . . . . Combat Hostiles . | . . . . . Parts Melted . | . . . . . Heat Transferred 150 | . . 100 50 . Parts Sabotaged . | . . . . . Parts Stolen . | . . . . . Parts Stripped . | . . . . . Power Chain Reactions . | . . . . . Alert | -11 -10 -10 -9 -9 ------- Run | Yrd Mat Min Mat Min Peak Influence 215 | . 88 130 215 80 Initial 67 | . . 34 50 67 Average 102 | . 54 86 144 64 Maximum Alert Level 1 | . . . 1 . Low Security (%) 78 | 100 100 100 63 100 Level 1 21 | . . . 36 . Level 2 . | . . . . . Level 3 . | . . . . . Level 4 . | . . . . . Level 5 . | . . . . . High Security . | . . . . . Max Security . | . . . . . Squads Dispatched 1 | . . . 1 . Investigation . | . . . . . Extermination . | . . . . . Reinforcement 1 | . . . 1 . Assault . | . . . . . Garrison . | . . . . . Intercept . | . . . . . Searches Triggered . | . . . . . Construction Impeded . | . . . . . Haulers Reinforced . | . . . . . Active Scanning Responses . | . . . . . Cargo Convoy Interrupts . | . . . . . Stealth | -11 -10 -10 -9 -9 --------- Run | Yrd Mat Min Mat Min Distress Signals 1 | . . . 1 . Communications Jammed . | . . . . . Distress Signals . | . . . . . Times Spotted 44 | . 4 2 16 22 Peak Tracking Total 17 | . 2 2 6 17 Tactical Retreats 2 | . . . 1 1 Traps | -11 -10 -10 -9 -9 ------- Run | Yrd Mat Min Mat Min Traps Triggered 1 | . 1 . . . Indirectly . | . . . . . Trap Hack Attempts . | . . . . . Triggered . | . . . . . Disarmed . | . . . . . Reprogrammed . | . . . . . Reused . | . . . . . Traps Extracted . | . . . . . Installed . | . . . . . Triggered . | . . . . . Machines | -11 -10 -10 -9 -9 ---------- Run | Yrd Mat Min Mat Min Machines Disabled 1 | . . 1 . . Max in Single Turn 1 | . . 1 . . Machines Repaired . | . . . . . Machines Dismantled . | . . . . . Machines Sabotaged . | . . . . . Overloaded Fab Kills . | . . . . . Hacking | -11 -10 -10 -9 -9 --------- Run | Yrd Mat Min Mat Min Machines Accessed 2 | . 1 . . 1 Terminals 1 | . . . . 1 Fabricators . | . . . . . Repair Stations . | . . . . . Recycling Units 1 | . 1 . . . Scanalyzers . | . . . . . Garrison Access . | . . . . . Total Hacks 2 | . 1 . . 1 Successful 1 | . 1 . . . Failed 1 | . . . . 1 Catastrophic . | . . . . . Database Lockouts . | . . . . . Manual 3 | . . . . 3 Terminals 1 | . . . . 1 Fabricators . | . . . . . Repair Stations . | . . . . . Recycling Units 1 | . 1 . . . Scanalyzers . | . . . . . Garrison Access . | . . . . . Terminal Hacks . | . . . . . Fabricator Hacks . | . . . . . Repair Station Hacks . | . . . . . Recycling Unit Hacks 1 | . 1 . . . Report Inventory 1 | . 1 . . . Scanalyzer . | . . . . . Garrison Access Hacks . | . . . . . Unauthorized Hacks . | . . . . . Terminals . | . . . . . Fabricators . | . . . . . Repair Stations . | . . . . . Recycling Units . | . . . . . Scanalyzers . | . . . . . Garrison Access . | . . . . . Data Cores Recovered . | . . . . . Used . | . . . . . Hacking Detections . | . . . . . Full Trace Events . | . . . . . Feedback Events . | . . . . . Feedback Blocked . | . . . . . Robot Schematics Acquired . | . . . . . Robots Built . | . . . . . Authchips . | . . . . . Time . | . . . . . Total Robot Build Rating . | . . . . . Part Schematics Acquired . | . . . . . Parts Built . | . . . . . Authchips . | . . . . . Time . | . . . . . Total Part Build Rating . | . . . . . Parts Repaired . | . . . . . Time . | . . . . . Parts Recycled . | . . . . . Recycled Matter . | . . . . . Retrieved Matter . | . . . . . Retrieved Components . | . . . . . Parts Scanalyzed . | . . . . . Part Schematics Acquired . | . . . . . Parts Damaged . | . . . . . Bothacking | -11 -10 -10 -9 -9 ------------ Run | Yrd Mat Min Mat Min Used RIF Installer . | . . . . . Robots Hacked . | . . . . . Non-combat . | . . . . . Combat . | . . . . . Robot Hacks Applied . | . . . . . Relay Couplers Released . | . . . . . Fabnet Peak Effective % . | . . . . . Robots Rewired . | . . . . . Allies Hacked . | . . . . . Hacks Repelled . | . . . . . Allies | -11 -10 -10 -9 -9 -------- Run | Yrd Mat Min Mat Min Total Allies . | . . . . . Largest Group . | . . . . . Highest-Rated Group . | . . . . . Highest-Rated Ally . | . . . . . Total Orders . | . . . . . Ally Attacks . | . . . . . Total Damage . | . . . . . Kills . | . . . . . Allies Corrupted . | . . . . . Allies Melted . | . . . . . Intel | -11 -10 -10 -9 -9 ------- Run | Yrd Mat Min Mat Min Robot Analysis Total . | . . . . . Derelict Logs Recovered 1 | . . 1 . . Drone Launches . | . . . . . Drone Recoveries . | . . . . . Exploration | -11 -10 -10 -9 -9 ------------- Run | Yrd Mat Min Mat Min Turns Passed 855 | 80 193 50 487 45 Spaces Moved 829 | 97 176 55 449 52 Core 96 | 32 . . 23 41 Treads . | . . . . . Legs . | . . . . . Wheels 733 | 65 176 55 426 11 Hover . | . . . . . Flight . | . . . . . Fastest Speed 50 | 50 80 80 50 50 Average Speed 81 | 70 80 80 87 59 Slowest Speed 200 | 80 80 80 200 105 Overloaded Moves . | . . . . . Propulsion Burnouts . | . . . . . Robots Hopped . | . . . . . Cave-ins Triggered . | . . . . . Exploration Rate (%) 15 | 5 23 10 28 11 Regions Visited 4 Branch Regions 2 Pre-discovered Areas . | . . . . . Known Exits Taken . | . . . . . Unknown Exits Taken 4 | 1 1 1 1 . Scrap Searched 1 | . . . . 1 Spaces Dug . | . . . . . Terrain Destroyed 93 | . . 17 58 18 Melee . | . . . . . Projectile . | . . . . . AOE 93 | . . 17 58 18 Terrain Rammed . | . . . . . Walls Destroyed . | . . . . . Machines Disabled . | . . . . . Actions | -11 -10 -10 -9 -9 --------- Run | Yrd Mat Min Mat Min Total 940 | 108 206 58 508 60 Wait 3 | . 3 . . . Move 825 | 96 175 54 448 52 Hop . | . . . . . Pick Up 29 | 7 7 2 12 1 Fast Attach 2 | . . . 1 1 Attach 14 | 4 2 . 5 3 Detach . | . . . . . Swap 10 | 1 3 1 5 . Drop 12 | . 5 . 7 . Fire 45 | . 11 1 30 3 Melee . | . . . . . Ram . | . . . . . Kick . | . . . . . Crush . | . . . . . Escape Stasis . | . . . . . Rewire . | . . . . . Trap . | . . . . . Miscellaneous . | . . . . . Route ------- -11/Scrapyard -10/Materials -10/Mines -9/Materials -9/Mines History --------- Turn | Location | Event 2 | -11/Scrapyard | Met Revision 17 73 | -11/Scrapyard | Discovered new exit (range 8) 81 | -11/Scrapyard | Entered Materials 255 | -10/Materials | Discovered new exit (range 17) 274 | -10/Materials | Entered Mines 281 | -10/Mines | Received a Rocket Launcher from a helpful Derelict 308 | -10/Mines | Build established: Mutant 314 | -10/Mines | Discovered new exit (range 7) 319 | -10/Mines | Learned Materials terminal intel 324 | -10/Mines | Entered Materials 324 | -9/Materials | Evolved 2 slots: Propulsion x1, Utility x1 325 | -9/Materials | Loaded intel: 12 terminal locations 752 | -9/Materials | Discovered new exit (range 18) 795 | -9/Materials | Lost 3 parts (2n1u) 811 | -9/Materials | Entered Mines 812 | -9/Mines | Assembled infested the area 817 | -9/Mines | Assisted by a Guerilla fighting off Assembled 848 | -9/Mines | Core integrity fell below 50% 854 | -9/Mines | Core integrity fell below 20% 856 | -9/Mines | Destroyed by as-43860 with Assembled Heavy Rifle Last Messages --------------- When the line of fire is red, you are attempting to shoot through an object at another target, which incurs significant penalties. as-23468 destroyed. Destroyed Asb. F-torch. The unstable cave ceiling collapses. Med. Armor Plating destroyed. Destroyed Asb. Hover Unit. as-69002 destroyed. Med. Armor Plating destroyed. Mni. Grenade Launcher destroyed. Shotgun destroyed. System corrupted by crushing effect (+1). Arm. Wheel severed. C-30 ARC bursts open, deploying its payload. D-53 Grenadier unfolds itself. as-88114 destroyed. as-40716 destroyed. as-05415 destroyed. [Achievement: First Step to Greatness] Map ----- +----------------------------------------------------+ | ???????????????????????????????????????????? | | ???????????????????????????????????????????? | | ???????????????????????????????????????????? | | ???????????????????????????????????????????? | | ???????????????????????????? ?????????????? | | ???????????????????????????? #????????????? | | ???????????????????????????? #????????????? | | ?????????????????????????#? #????????????? | | ???????????????????????## ? #????????????? | | ??????????????????????## ? ?????????????? | | ?????????????????????## ? #?????????????? | | ????????????????????? ## =#?????????????? | | ?????????????????????? #=%#?????????????? | | ?????????????????????? |*#?????????????? | | ??????????????????????# ??????????????? | | ??????????????????????# ?###???????????? | | ??????????????????????# ### ##??????????? | | ??????????????????????# ####????????? | | ?????????????????????## ##???????? | | ?????????????????????# aa ![#???????? | | ????????????????????## a % #???????? | | ????????????????????# a## # ###?????? | | ????????????????????# % ### #?????? | | ????????????????????# % ###T """#?????? | | ??????????????????### dd ### % """#?????? | | ??????????????????# % @ #?#% """#?????? | | ??????????? $ # #?# %% #?????? | | ????????????#######?## ##?# #?????? | | ?????????????????????## ##?#" #?????? | | ??????????????????????####??###%######?????? | | ??????????????????????????????#%#??????????? | | ??????????????????????????????#%"??????????? | | ??????????????????????????????# #??????????? | | ??????????????????????????????# #??????????? | | ??????????????????????????????# ??????????? | | ??????????????????????????????###??????????? | | ???????????????????????????????????????????? | | ???????????????????????????????????????????? | | ???????????????????????????????????????????? | | ???????????????????????????????????????????? | | ???????????????????????????????????????????? | | ???????????????????????????????????????????? | | ???????????????????????????????????????????? | | ???????????????????????????????????????????? | | ???????????????????????????????????????????? | | ???????????????????????????????????????????? | | ???????????????????????????????????????????? | | ???????????????????????????????????????????? | | ???????????????????????????????????????????? | | ???????????????????????????????????????????? | +----------------------------------------------------+ Best States ------------- Heat Dissipation 28 Energy Generation 12 Energy Capacity 265 Matter Stores 300 Matter Capacity 300 Sight Range 18 Robot Scan Range 14 Terrain Scan Density 10 Armor Coverage 450 Evasion (%) 50 Item Schematics ----------------- None Robot Schematics ------------------ None Fabricated ------------ Nothing Alien Tech Used ----------------- None Achievements -------------- Crack Shot First Step to Greatness Uninvited Guest Challenges ------------ None Game ------ Seed MiningBombardmentGenerator Manual? 0 Play Time 00:31:41 Cumulative 0.4 hours Start 2024.04.04 @ 15:18:35 End 2024.04.04 @ 16:09:44 Sessions 1 Manual Loads 0 Difficulty Rogue Special Mode None Game No. 1 Rogue 1 Adventurer 0 Explorer 0 Win Type - Total 0 Types 0/0/0/0/0/0/0/0/0 Lore% 0 Gallery% 1 Achievement% 1 Wizard Run 0 Options --------- Layout 1 ASCII 0 Keyboard 0 Movement Mouse Keybinds 0 Fullscreen 1 Font 24/Smallcaps Map View 50x35 Zoom Use 0% Tactical HUD 0 Map Filters NONE Filters NONE Steam 1 RUN: 764fed5a-8a2e-4fca-95fd-e36a49322c6d